bitfinex-derivatives/quotes_SOLF0:USTF0_20251228
["timestamp","ask_amount","ask_price","bid_price","bid_amount"]
[1766960189915,0.00399549,123.68,123.64,3.32]
[1766960190606,0.00399549,123.68,123.65,3.37134972]
[1766960193819,1.50796625,123.67,123.65,0.05134972]
[1766960194014,1.50796625,123.67,123.63,3.32]
[1766960194719,1.50796625,123.66,123.63,3.32]
[1766960195019,1.50796625,123.65,123.63,3.37669234]
[1766960195326,0.06102523,123.65,123.63,3.37669234]
[1766960195619,9.60026584,123.71,123.63,4.88465859]
[1766960195810,5.99040668,123.7,123.66,1.50796625]
[1766960196006,3.47,123.71,123.66,4.82796625]
[1766960196320,7.2812,123.7,123.67,4.82796625]
[1766960196821,7.3390256,123.7,123.67,3.38190278]
[1766960201031,0.0578256,123.7,123.67,3.38190278]
[1766960201220,7.2798,123.72,123.67,3.38190278]
[1766960202330,0.06152558,123.71,123.67,3.38190278]
[1766960204625,0.06152558,123.71,123.67,4.88986903]
[1766960204923,1.50796625,123.73,123.69,3.32]
[1766960205727,0.06043565,123.72,123.7,0.06144406]
[1766960220044,0.06043565,123.72,123.7,3.51144406]
[1766960221925,5.61443266,123.78,123.71,3.45]
[1766960222533,12.89093266,123.78,123.71,3.45]
[1766960222931,0.05166034,123.76,123.73,0.05422844]
[1766960223831,0.05166034,123.76,123.73,3.50422844]
[1766960226032,12.88963266,123.8,123.73,3.50422844]
[1766960227038,3.26,123.79,123.73,3.50422844]
[1766960227529,2.35443266,123.77,123.73,3.50422844]
[1766960229537,12.89053266,123.78,123.73,3.50422844]
[1766960232241,10.5361,123.78,123.73,3.50422844]
[1766960239742,3.35,123.76,123.73,0.05422844]
[1766960240536,10.6274,123.76,123.73,0.05422844]
[1766960240738,5.70443266,123.75,123.69,3.25]
[1766960241536,2.35443266,123.73,123.69,3.25]
[1766960241741,2.4086611,123.73,123.69,3.25]
[1766960242541,9.6876611,123.73,123.69,3.25]
[1766960242742,9.6876611,123.73,123.7,0.06026618]
[1766960244645,13.0376611,123.73,123.7,0.06026618]
[1766960245847,13.0376611,123.73,123.67,3.25]
[1766960246047,3.35,123.72,123.67,3.25]
[1766960246947,0.05517842,123.71,123.68,0.05742875]
[1766960248148,5.75961108,123.71,123.68,0.05742875]
[1766960255955,13.03981108,123.71,123.68,0.05742875]
[1766960257866,3.35,123.7,123.66,3.25]
[1766960258258,3.35,123.7,123.64,3.25]
[1766960258867,0.05131511,123.68,123.66,0.05140145]
[1766960273675,7.33321511,123.68,123.66,0.05140145]
[1766960282991,0.05131511,123.68,123.66,0.05140145]
[1766960283886,0.00131511,123.68,123.66,4.79939575]
[1766960284079,0.00131511,123.68,123.67,3.24]
[1766960284484,3.21,123.75,123.68,3.24]
[1766960284683,3.21,123.74,123.69,3.24]
[1766960285593,0.05351271,123.73,123.7,0.05128282]
[1766960296399,1.5079943,123.72,123.67,3.38]
[1766960296696,1.5079943,123.73,123.67,3.38]
[1766960297499,0.05157873,123.71,123.69,0.05838503]
[1766960297894,1.55957303,123.71,123.69,0.05838503]
[1766960298597,0.05157873,123.71,123.69,0.05838503]
[1766960303201,0.05157873,123.71,123.67,3.38]
[1766960304308,4.80957303,123.71,123.68,0.06103915]
[1766960308804,3.25,123.69,123.64,3.38]
[1766960309909,0.05630973,123.68,123.65,0.06079605]
[1766960310609,0.05630973,123.68,123.65,3.44079605]
[1766960315815,0.05630973,123.68,123.65,0.06079605]
[1766960333021,7.2805,123.71,123.65,0.06079605]
[1766960333022,3.66,123.71,123.66,5.2179943]
[1766960334032,0.05538851,123.7,123.66,5.2179943]
[1766960335931,0.05538851,123.7,123.66,3.71]
[1766960340445,10.9393,123.73,123.68,3.71]
[1766960340746,13.29271436,123.75,123.68,3.71]
[1766960340937,6.00762768,123.74,123.68,3.71]
[1766960341548,0.06185355,123.72,123.7,0.06097706]
[1766960352351,0.06185355,123.72,123.64,2.35461436]
[1766960352653,6.01461436,123.73,123.64,2.35461436]
[1766960353352,0.0606266,123.7,123.67,0.05647208]
[1766960354554,0.0606266,123.7,123.67,3.76647208]
[1766960357355,0.0606266,123.7,123.67,11.04887208]
[1766960358751,0.0606266,123.7,123.68,4.04]
[1766960362752,0.0606266,123.7,123.67,0.05647208]
[1766960378984,0.0006266,123.7,123.67,4.09647208]
[1766960379378,3.81,123.74,123.69,4.04]
[1766960379584,9.81814267,123.76,123.69,4.04]
[1766960380385,0.0543467,123.74,123.71,0.05657957]
[1766960380577,0.0543467,123.74,123.71,7.33657957]
[1766960382679,0.0543467,123.74,123.72,7.2794]
[1766960385487,0.0543467,123.74,123.71,4.09657957]
[1766960385988,0.0543467,123.74,123.71,11.37667957]
[1766960400502,0.0543467,123.74,123.71,12.88268882]
[1766960403415,0.0543467,123.74,123.72,3.58]
[1766960403711,0.0543467,123.74,123.72,5.08600925]
[1766960405114,0.0543467,123.74,123.72,3.58]
[1766960427928,0.0543467,123.74,123.72,5.08600925]
[1766960433937,0.0543467,123.74,123.72,3.58]
[1766960441436,0.0543467,123.74,123.72,5.08600925]
[1766960442936,9.5104589,123.78,123.73,3.77]
[1766960443135,3.51,123.8,123.74,5.27600925]
[1766960443439,15.55151986,123.8,123.74,5.27600925]
[1766960443639,6.00003632,123.79,123.74,5.27600925]
[1766960443938,6.05698858,123.78,123.75,0.05618375]
[1766960444132,0.05695226,123.78,123.75,0.05618375]
[1766960456442,0.05695226,123.78,123.75,5.002193]
[1766960457950,0.05695226,123.78,123.75,3.49618375]
[1766960460956,4.89600925,123.82,123.76,3.44]
[1766960461254,3.39,123.82,123.76,4.94600925]
[1766960461454,9.36969181,123.82,123.76,4.94600925]
[1766960462048,0.05839234,123.8,123.78,0.0600563]
[1766960469973,1.40354252,123.83,123.78,3.5000563]
[1766960471074,0.06094438,123.82,123.78,3.5000563]
[1766960483278,0.06094438,123.82,123.78,10.7759563]
[1766960483476,0.06094438,123.82,123.79,3.65]
[1766960485587,0.06094438,123.82,123.8,3.65]
[1766960491489,0.06094438,123.82,123.78,3.7100563]
[1766960495992,0.06094438,123.82,123.8,3.65]
[1766960496396,10.7216,123.86,123.8,3.65]
[1766960497392,10.7216,123.86,123.82,0.05431319]
[1766960498392,13.07190695,123.88,123.82,3.70431319]
[1766960498597,5.80140695,123.88,123.82,3.70431319]
[1766960498794,3.45,123.88,123.82,3.70431319]
[1766960500994,5.80140695,123.88,123.82,3.70431319]
[1766960508103,12.09380759,123.91,123.83,9.62420695]
[1766960508303,3.42,123.9,123.86,0.05750776]
[1766960508496,2.35140695,123.88,123.81,3.56]
[1766960508699,5.77140695,123.88,123.82,3.56]
[1766960509400,3.42,123.88,123.82,3.56]
[1766960509706,3.42,123.88,123.84,0.05444617]
[1766960509707,0.06089913,123.86,123.84,0.05444617]
[1766960535531,5.06446888,123.86,123.84,0.00444617]
[1766960535729,1.50356975,123.85,123.84,0.00444617]
[1766960537338,1.50356975,123.85,123.81,3.56]
[1766960538326,1.50356975,123.85,123.82,0.05175879]
[1766960542240,10.83239913,123.86,123.82,0.05175879]
[1766960542442,12.33596888,123.86,123.82,0.05175879]
[1766960550149,10.83239913,123.86,123.82,0.05175879]
[1766960554253,3.5,123.85,123.82,0.05175879]
[1766960555745,3.5,123.84,123.82,0.00175879]
[1766960556638,3.56089913,123.86,123.82,0.00175879]
[1766960557558,3.5,123.85,123.82,0.00175879]
[1766960568155,0.06089913,123.86,123.82,3.32175879]
[1766960568360,0.06089913,123.86,123.83,1.50356975]
[1766960569360,0.06089913,123.86,123.82,4.82532854]
[1766960582065,0.00089913,123.86,123.84,3.51]
[1766960590076,0.00089913,123.86,123.83,3.51]
[1766960634919,0.00089913,123.86,123.82,0.00175879]
[1766960635117,0.00089913,123.86,123.82,3.51175879]
[1766960646629,0.00089913,123.86,123.82,5.01515822]
[1766960653524,0.00089913,123.86,123.82,1.50515822]
[1766960653727,3.33,123.89,123.85,1.50339943]
[1766960654030,3.33,123.89,123.85,5.01339943]
[1766960654826,0.05173553,123.88,123.86,0.05453013]
[1766960679460,0.05173553,123.88,123.86,1.55792956]
[1766960679655,0.05173553,123.88,123.86,0.05453013]
[1766960730009,3.42173553,123.88,123.84,3.42]
[1766960730705,3.37,123.87,123.82,100.98832623]
[1766960731094,3.37,123.87,123.83,0.05983302]
[1766960731291,3.37,123.87,123.83,3.27983302]
[1766960733003,3.37,123.87,123.84,2.34832623]
[1766960741812,0.05173553,123.88,123.86,2.34832623]
[1766960742006,0.05173553,123.88,123.86,0.05198895]
[1766960768637,0.05173553,123.88,123.86,1.55470634]
[1766960770446,0.05173553,123.88,123.86,0.05198895]
[1766960770745,0.05173553,123.88,123.86,1.55470634]
[1766960770943,3.49,123.9,123.86,1.55470634]
[1766960771849,0.05894425,123.89,123.86,1.55470634]
[1766960772949,0.05894425,123.89,123.87,1.50271739]
[1766960773151,0.05894425,123.89,123.86,12.34590634]
[1766960774550,0.05894425,123.89,123.87,1.50271739]
[1766960781649,6.80585878,123.92,123.87,4.89271739]
[1766960781849,6.80585878,123.92,123.88,4.89271739]
[1766960781850,3.31585878,123.92,123.88,4.89271739]
[1766960782755,0.04829652,123.91,123.89,0.05430138]
[1766960784960,3.58829652,123.91,123.86,98.81]
[1766960785257,3.58829652,123.91,123.86,3.39]
[1766960786057,3.58829652,123.91,123.87,0.06153374]
[1766960805286,3.58829652,123.91,123.87,0.00153374]
[1766960805287,10.85679652,123.91,123.87,0.00153374]
[1766960805486,3.41,123.9,123.87,0.00153374]
[1766960820200,3.41,123.9,123.87,1.50425113]
[1766960821903,10.679,123.9,123.87,0.00153374]
[1766960839822,0.04829652,123.91,123.87,0.00153374]
[1766960848932,0.04829652,123.91,123.87,3.52153374]
[1766960859141,3.31585878,123.92,123.87,3.52153374]
[1766960860337,3.31585878,123.92,123.88,3.52]
[1766960861339,7.2665,123.95,123.87,0.00153374]
[1766960861340,3.51,123.94,123.87,0.00153374]
[1766960861537,3.51,123.94,123.85,17.41001442]
[1766960861538,5.8583336,123.94,123.85,17.41001442]
[1766960861743,3.51,123.94,123.85,17.41001442]
[1766960862339,3.51,123.94,123.88,0.05406802]
[1766960862740,5.8583336,123.94,123.88,0.05406802]
[1766960863049,3.51,123.93,123.88,0.05406802]
[1766960863542,5.8583336,123.92,123.88,0.05406802]
[1766960863749,3.51,123.91,123.82,24.18672605]
[1766960864050,3.51,123.91,123.82,9.12504523]
[1766960864843,0.05406802,123.88,123.85,0.05761961]
[1766960870047,0.05406802,123.88,123.85,2.40595321]
[1766960871445,3.33,123.91,123.85,2.40595321]
[1766960873449,3.33,123.91,123.85,0.05761961]
[1766960879862,3.33,123.91,123.85,7.32941961]
[1766960892580,3.33,123.91,123.86,1.50271809]
[1766960897684,3.33,123.91,123.85,7.32941961]
[1766960897989,3.33,123.91,123.86,1.50271809]
[1766960899590,3.33,123.91,123.85,7.32941961]
[1766960899789,3.33,123.91,123.86,1.50271809]
[1766960915191,9.30213843,123.91,123.86,1.50271809]
[1766960915800,3.32,123.9,123.86,1.50271809]
[1766960918191,3.32,123.9,123.85,1.5603377]
[1766960918495,3.32,123.9,123.85,0.05761961]
[1766960919804,3.32,123.9,123.85,1.5603377]
[1766960926704,3.32,123.9,123.86,1.50271809]
[1766960935110,3.32,123.9,123.85,0.05761961]
[1766960935302,3.32,123.9,123.86,1.50271809]
[1766960944315,3.32,123.9,123.85,1.5603377]
[1766960948014,3.32,123.9,123.86,1.50271809]
[1766960952528,3.32,123.9,123.85,0.05761961]
[1766960960826,3.4,123.89,123.85,0.05761961]
[1766960976336,3.4,123.92,123.86,2.34812258]
[1766960976640,3.4,123.91,123.88,0.06179725]
[1766960977442,3.4,123.91,123.88,0.00179725]
[1766960978331,3.4581394,123.91,123.88,0.00179725]
[1766961031782,9.43544353,123.91,123.88,0.00179725]
[1766961032177,3.44,123.9,123.88,0.00179725]
[1766961039795,3.44,123.89,123.88,0.00179725]
[1766961048695,3.35,123.88,123.8,3.36719296]
[1766961048900,3.35,123.86,123.8,3.36719296]
[1766961049300,3.35,123.86,123.8,1.8645247]
[1766961049695,0.06056988,123.84,123.82,0.05100312]
[1766961049900,3.41056988,123.84,123.79,1.50266826]
[1766961050897,3.41056988,123.84,123.8,0.05814583]
[1766961051802,3.41056988,123.84,123.8,1.56081409]
[1766961056008,0.06056988,123.84,123.81,1.50266826]
[1766961056508,0.06056988,123.84,123.82,1.50266826]
[1766961058212,0.06056988,123.84,123.81,7.2741]
[1766961058411,0.06056988,123.84,123.81,8.77676826]
[1766961061811,0.06056988,123.84,123.81,7.2741]
[1766961061999,0.06056988,123.84,123.81,8.77676826]
[1766961063711,0.06056988,123.84,123.81,7.2741]
[1766961064010,0.06056988,123.84,123.81,8.77676826]
[1766961072612,0.06056988,123.84,123.81,7.2741]
[1766961077430,3.31056988,123.84,123.81,7.2741]
[1766961077725,3.31056988,123.84,123.8,0.05814583]
[1766961083920,3.31056988,123.84,123.77,7.2761]
[1766961084120,3.25,123.84,123.77,7.2761]
[1766961084933,3.30109755,123.82,123.79,0.05305612]
[1766961126968,3.30109755,123.82,123.79,0.00305612]
[1766961134470,3.30109755,123.82,123.79,1.50750239]
[1766961138575,3.30109755,123.82,123.78,8.78044627]
[1766961139577,3.30109755,123.82,123.79,0.0519815]
[1766961166394,3.30109755,123.82,123.76,7.3667]
[1766961166693,3.30109755,123.82,123.78,1.50444627]
[1766961166895,3.30109755,123.82,123.76,1.50444627]
[1766961167095,3.30109755,123.82,123.77,1.50444627]
[1766961167291,3.25,123.81,123.77,1.50444627]
[1766961167490,3.30256907,123.8,123.78,0.05374496]
[1766961193616,3.30256907,123.8,123.73,7.2784]
[1766961193617,3.30256907,123.8,123.73,8.78284627]
[1766961194425,3.30256907,123.8,123.75,0.0613343]
[1766961194619,3.30256907,123.8,123.75,0.0013343]
[1766961195325,3.30256907,123.8,123.75,1.50578057]
[1766961196626,3.30256907,123.8,123.75,0.0013343]
[1766961199429,3.54,123.79,123.75,0.0013343]
[1766961212439,3.54,123.78,123.75,0.0013343]
[1766961213529,10.8162,123.78,123.75,0.0013343]
[1766961213737,3.54,123.77,123.75,0.0013343]
[1766961213936,3.59328348,123.77,123.75,0.0013343]
[1766961218143,3.54,123.76,123.75,0.0013343]
[1766961236258,0.4986657,123.74,123.69,5.8021295]
[1766961236457,10.7678,123.75,123.69,5.8021295]
[1766961237256,0.0549461,123.73,123.71,0.05448014]
[1766961300428,10.7678,123.75,123.71,0.05448014]
[1766961301620,0.05914064,123.74,123.71,0.05448014]
[1766961301827,5.97761112,123.76,123.72,1.50657408]
[1766961302429,3.54,123.76,123.71,4.79105422]
[1766961302728,0.05742309,123.75,123.71,4.79105422]
[1766961308137,0.05742309,123.75,123.71,3.28448014]
[1766961308333,0.05742309,123.75,123.71,4.79105422]
[1766961311635,0.05742309,123.75,123.72,1.50657408]
[1766961317239,0.05742309,123.75,123.71,4.79105422]
[1766961317641,0.05742309,123.75,123.72,3.19]
[1766961317836,3.33,123.78,123.73,4.69657408]
[1766961318037,5.9728876,123.79,123.74,4.69657408]
[1766961318437,9.3028876,123.79,123.74,3.19]
[1766961318847,0.0581506,123.78,123.75,0.05282391]
[1766961338763,0.0581506,123.78,123.75,3.24282391]
[1766961353281,5.96386126,123.8,123.75,3.24282391]
[1766961353483,3.45,123.78,123.72,3.5]
[1766961353877,9.41386126,123.78,123.72,3.5]
[1766961354580,0.06128809,123.76,123.74,0.05414453]
[1766961382320,0.44585547,123.74,123.73,3.24]
[1766961382521,0.06128809,123.76,123.73,3.24]
[1766961383416,0.06128809,123.76,123.73,3.30219499]
[1766961406532,3.42128809,123.76,123.73,0.06219499]
[1766961406731,4.92740841,123.76,123.7,3.47]
[1766961407037,5.95404952,123.75,123.7,3.47]
[1766961407737,13.23184952,123.75,123.71,0.05388968]
[1766961408036,7.2778,123.75,123.71,0.05388968]
[1766961418543,10.7678,123.75,123.71,0.05388968]
[1766961422338,3.49,123.74,123.71,0.05388968]
[1766961460084,9.46384479,123.74,123.71,0.05388968]
[1766961460378,3.49,123.74,123.71,0.05388968]
[1766961460775,9.46474063,123.74,123.71,0.05388968]
[1766961461781,3.49,123.74,123.71,0.05388968]
[1766961470893,9.46188253,123.74,123.71,0.05388968]
[1766961471190,3.49,123.74,123.71,0.05388968]
[1766961471391,9.46149311,123.74,123.71,0.05388968]
[1766961473693,3.49,123.74,123.71,0.05388968]
[1766961480596,10.85848809,123.76,123.71,0.05388968]
[1766961480894,5.97127503,123.75,123.71,0.05388968]
[1766961481190,3.52,123.75,123.68,5.6444655]
[1766961481391,3.52,123.74,123.68,5.6444655]
[1766961482192,0.05335841,123.72,123.7,0.05806189]
[1766961521630,4.88697016,123.76,123.71,3.38]
[1766961522524,4.88697016,123.76,123.71,4.88673687]
[1766961522729,0.05769049,123.75,123.71,4.88673687]
[1766961524629,0.05769049,123.75,123.72,3.38]
[1766961526929,0.05769049,123.75,123.7,5.05479876]
[1766961527233,0.05769049,123.75,123.7,3.54806189]
[1766961528234,0.05769049,123.75,123.7,5.05479876]
[1766961529332,0.05769049,123.75,123.7,3.54806189]
[1766961529537,0.05769049,123.75,123.7,5.05479876]
[1766961530943,0.05769049,123.75,123.7,3.54806189]
[1766961540343,0.05769049,123.75,123.71,1.50673687]
[1766961540534,0.05769049,123.75,123.71,5.01673687]
[1766961548652,0.05769049,123.75,123.72,3.51]
[1766961565864,7.2766,123.77,123.73,4.88673687]
[1766961566957,0.06040834,123.76,123.74,0.05133228]
[1766961600490,9.39952456,123.78,123.74,3.46133228]
[1766961600694,5.93952456,123.78,123.74,3.46133228]
[1766961601183,5.25856407,123.79,123.74,3.46133228]
[1766961601594,0.05348053,123.78,123.74,3.46133228]
[1766961606600,0.00348053,123.78,123.74,3.46133228]
[1766961607299,3.47302983,123.81,123.75,3.41]
[1766961607492,2.06659986,123.81,123.75,3.41]
[1766961608499,0.05945199,123.79,123.77,0.05222468]
[1766961611201,0.05945199,123.79,123.77,3.46222468]
[1766961612794,2.06659986,123.81,123.77,3.46222468]
[1766961613898,0.06027632,123.8,123.77,3.46222468]
[1766961618397,0.00027632,123.8,123.77,3.46222468]
[1766961625213,12.15930265,123.83,123.77,3.46222468]
[1766961626215,0.03978968,123.81,123.77,3.46222468]
[1766961661449,0.03978968,123.81,123.77,4.96756281]
[1766961662051,0.03978968,123.81,123.78,3.25]
[1766961680461,0.03978968,123.81,123.77,0.05222468]
[1766961680664,6.00184878,123.81,123.77,3.53222468]
[1766961681364,0.03978968,123.81,123.77,3.53222468]
[1766961682966,3.3,123.8,123.75,3.48]
[1766961683861,0.06209752,123.79,123.76,0.06180214]
[1766961727813,0.06209752,123.79,123.76,3.48180214]
[1766961733312,2.02762628,123.85,123.77,3.42]
[1766961734213,0.02991684,123.82,123.8,0.05911941]
[1766961739125,5.43762628,123.85,123.8,0.05911941]
[1766961739126,2.02762628,123.85,123.8,5.83118049]
[1766961739314,2.02762628,123.85,123.81,3.42]
[1766961746624,3.42,123.84,123.8,0.05911941]
[1766961747216,3.42,123.83,123.8,0.05911941]
[1766961747523,10.6938,123.82,123.77,3.42]
[1766961747724,3.42,123.81,123.74,3.42]
[1766961748425,0.05699154,123.79,123.76,0.0544187]
[1766961751828,3.47699154,123.79,123.76,0.0544187]
[1766961753217,4.98254289,123.79,123.76,0.0544187]
[1766961753423,3.42,123.78,123.73,3.42]
[1766961754333,3.42,123.78,123.74,0.06121245]
[1766961756432,3.42,123.77,123.74,0.06121245]
[1766961756932,3.42,123.77,123.71,4.92555135]
[1766961757228,3.42,123.76,123.71,4.92555135]
[1766961757427,3.42,123.76,123.71,3.42]
[1766961757633,3.42,123.76,123.69,4.92555135]
[1766961757820,0.05401179,123.74,123.71,0.05582531]
[1766961758032,3.47401179,123.74,123.71,0.05582531]
[1766961763032,3.47401179,123.74,123.69,4.92555135]
[1766961763630,3.47401179,123.74,123.69,3.42]
[1766961764131,3.47401179,123.74,123.7,0.06099101]
[1766961773746,10.75251179,123.74,123.7,0.06099101]
[1766961774244,1.50555135,123.8,123.72,3.5]
[1766961774439,10.5565,123.78,123.72,3.5]
[1766961774634,10.5565,123.78,123.73,1.50555135]
[1766961774839,3.28,123.77,123.73,1.50555135]
[1766961775245,0.05937654,123.76,123.74,0.051492]
[1766961787546,7.2762,123.78,123.74,3.291492]
[1766961788557,0.05841217,123.77,123.74,3.291492]
[1766961800657,7.2753,123.8,123.75,1.50555135]
[1766961800961,7.2753,123.8,123.76,3.36]
[1766961801661,0.05406933,123.79,123.77,0.05594785]
[1766961820074,3.25,123.81,123.77,0.05594785]
[1766961820281,5.32091542,123.83,123.77,3.41594785]
[1766961821585,7.2737,123.82,123.77,3.41594785]
[1766961824087,10.5237,123.82,123.77,3.41594785]
[1766961824781,2.07091542,123.83,123.77,3.41594785]
[1766961827478,3.25,123.84,123.77,2.40812368]
[1766961827790,3.49,123.85,123.79,3.28]
[1766961827971,3.49,123.85,123.81,0.06180867]
[1766961830685,3.75789566,123.88,123.81,3.34180867]
[1766961830686,3.49,123.87,123.81,3.34180867]
[1766961831684,3.49,123.86,123.81,3.34180867]
[1766961835286,5.84217583,123.86,123.81,3.34180867]
[1766961835486,3.49,123.86,123.81,3.34180867]
[1766961836388,3.49,123.86,123.81,0.06180867]
[1766961836886,5.84217583,123.86,123.81,0.06180867]
[1766961837084,3.49,123.85,123.81,0.06180867]
[1766961841299,3.49,123.85,123.81,0.00180867]
[1766961842286,0.06010868,123.84,123.81,0.00180867]
[1766961842985,3.52010868,123.84,123.81,0.00180867]
[1766961854110,10.79270868,123.84,123.79,3.28]
[1766961854305,3.46,123.83,123.77,3.39]
[1766961855204,7.331135,123.81,123.79,0.06180387]
[1766961855510,3.29249896,123.81,123.72,12.44426964]
[1766961855698,3.24,123.81,123.72,12.44426964]
[1766961855903,3.24,123.81,123.74,2.35217583]
[1766961856210,7.2756,123.79,123.74,2.35217583]
[1766961856612,0.05547213,123.78,123.75,0.05404875]
[1766961862409,3.24,123.82,123.76,2.2]
[1766961862809,3.24,123.87,123.8,2.2]
[1766961863006,3.24,123.87,123.81,4.55217583]
[1766961863317,3.24,123.87,123.82,2.2]
[1766961863516,0.06092903,123.86,123.83,2.4074374]
[1766961867419,0.06092903,123.86,123.83,0.05526157]
[1766961874522,0.06092903,123.86,123.84,1.50313519]
[1766961876421,10.5096,123.89,123.84,1.50313519]
[1766961878223,3.24,123.89,123.84,1.50313519]
[1766961878428,3.24,123.89,123.84,3.70313519]
[1766961878624,3.24,123.89,123.85,2.2]
[1766961878829,10.5087,123.91,123.86,0.06052381]
[1766961879330,10.509,123.9,123.86,0.06052381]
[1766961879530,3.24,123.9,123.86,1.563659]
[1766961879719,3.24,123.92,123.88,1.50313519]
[1766961879923,3.24,123.92,123.89,0.05161403]
[1766961880424,7.2683,123.92,123.89,0.05161403]
[1766961881229,3.24,123.93,123.89,0.05161403]
[1766961887536,10.5073,123.93,123.89,0.05161403]
[1766961901462,10.5073,123.93,123.89,2.25161403]
[1766961902359,10.5073,123.93,123.89,0.05161403]
[1766961903259,7.2673,123.93,123.89,2.25161403]
[1766961903460,10.4973,123.93,123.89,0.05161403]
[1766961904162,3.23,123.92,123.89,0.05161403]
[1766961905664,3.23,123.92,123.89,0.00161403]
[1766961906865,3.28687928,123.92,123.89,0.00161403]
[1766961926476,0.05687928,123.92,123.89,2.25161403]
[1766961927673,3.29,123.91,123.86,10.09209381]
[1766961927870,3.29,123.91,123.85,1.50313519]
[1766961928272,3.29,123.89,123.83,1.50313519]
[1766961928674,0.05849331,123.87,123.85,0.05306585]
[1766961931478,3.34849331,123.87,123.85,0.00306585]
[1766961937375,3.29,123.86,123.78,111.17131488]
[1766961937575,3.29,123.86,123.78,98.73]
[1766961937779,3.29,123.86,123.79,13.42209381]
[1766961937980,3.29,123.86,123.79,3.33]
[1766961938176,3.29,123.86,123.8,3.33]
[1766961938388,0.05945794,123.84,123.82,0.05486222]
[1766961938681,3.34945794,123.84,123.82,0.00486222]
[1766961965504,0.05945794,123.84,123.82,0.00486222]
[1766961966305,0.05945794,123.84,123.82,7.27846222]
[1766961979322,3.37,123.89,123.83,7.273]
[1766961980226,3.4209567,123.87,123.85,0.06203333]
[1766961980424,3.4209567,123.87,123.85,0.00203333]
[1766961983026,0.0509567,123.87,123.85,0.00203333]
[1766961984025,0.0509567,123.87,123.85,3.48203333]
[1766961987226,0.0509567,123.87,123.85,10.75383333]
[1766961992734,3.37,123.9,123.85,13.1030544]
[1766961993830,0.05861161,123.89,123.85,13.1030544]
[1766961996540,0.05861161,123.89,123.86,1.50258794]
[1766961998234,0.05861161,123.89,123.85,10.75383333]
[1766961998434,0.05861161,123.89,123.86,1.50258794]
[1766962003539,3.10723756,123.94,123.86,1.50258794]
[1766962003540,3.37,123.92,123.87,3.48]
[1766962003736,4.97464962,123.94,123.88,4.98258794]
[1766962004138,3.37,123.93,123.88,4.98258794]
[1766962004538,0.05253291,123.92,123.89,0.05642832]
[1766962011448,0.05253291,123.92,123.89,3.52642832]
[1766962011845,0.05253291,123.92,123.89,0.05642832]
[1766962013952,3.58253291,123.92,123.86,12.24358794]
[1766962015152,3.58253291,123.92,123.88,0.05273307]
[1766962022758,3.58253291,123.92,123.88,0.00273307]
[1766962024357,10.85033291,123.92,123.88,0.00273307]
[1766962024551,3.28,123.91,123.88,0.00273307]
[1766962034674,0.49726693,123.88,123.86,1.50258794]
[1766962034968,3.28,123.91,123.86,1.50258794]
[1766962035670,3.31095856,123.9,123.87,0.06006492]
[1766962060088,3.31095856,123.9,123.87,6.492e-05]
[1766962060288,3.31095856,123.9,123.83,3.22]
[1766962060289,3.26,123.89,123.83,13.31209381]
[1766962060590,3.26,123.89,123.83,3.22]
[1766962060988,3.26,123.89,123.82,2.34771895]
[1766962061179,3.32116502,123.87,123.84,0.05720332]
[1766962061379,3.31591165,123.87,123.84,0.05230184]
[1766962069103,0.05591165,123.87,123.84,3.58230184]
[1766962069594,0.05591165,123.87,123.84,5.93002079]
[1766962070906,0.05591165,123.87,123.84,2.40002079]
[1766962074014,7.2704,123.88,123.85,3.53]
[1766962074417,7.2704,123.88,123.84,2.40002079]
[1766962074918,10.5404,123.88,123.84,2.40002079]
[1766962075119,0.05822662,123.87,123.84,2.40002079]
[1766962080521,0.05822662,123.87,123.84,0.05230184]
[1766962101843,3.31,123.86,123.84,0.00230184]
[1766962108248,3.31,123.9,123.84,0.43230184]
[1766962108439,3.31,123.92,123.85,0.37]
[1766962109244,3.31,123.92,123.87,0.0531753]
[1766962109444,0.06081665,123.9,123.87,0.0531753]
[1766962109645,0.00081665,123.9,123.87,0.4231753]
[1766962112644,0.00081665,123.9,123.87,0.0531753]
[1766962120452,1.40515222,123.94,123.87,7.3237753]
[1766962120653,4.65662131,123.97,123.9,1.50238692]
[1766962120847,6.15900823,123.97,123.9,1.50238692]
[1766962121047,6.15900823,123.97,123.89,1.50238692]